fUST/lending_fUST_20240116
["ID","MTS","AMOUNT","RATE_DAILY","PERIOD"]
[311712452,1705349439631,-500.0,0.00030136,2]
[311712454,1705349439641,-500.0,0.00030136,2]
[311712456,1705349439650,-197.25905233,0.00030136,2]
[311712458,1705349439660,-500.0,0.00030136,2]
[311712460,1705349439669,-500.0,0.00030136,2]
[311712462,1705349439679,-500.0,0.00030136,2]
[311712464,1705349439688,-500.0,0.00030136,2]
[311712466,1705349439697,-500.0,0.00030136,2]
[311712468,1705349439706,-500.0,0.00030136,2]
[311712470,1705349439715,-500.0,0.00030136,2]
[311712472,1705349439724,-500.0,0.00030136,2]
[311712474,1705349439733,-427.61481384,0.00030136,2]
[311712476,1705349439742,-500.0,0.00030136,2]
[311712478,1705349439751,-500.0,0.00030136,2]
[311712480,1705349439760,-500.0,0.00030136,2]
[311712482,1705349439769,-500.0,0.00030136,2]
[311712484,1705349439778,-500.0,0.00030136,2]
[311712486,1705349439787,-822.87,0.00030136,2]
[311712488,1705349439796,-500.0,0.00030136,2]
[311712490,1705349439805,-500.0,0.00030136,2]
[311712492,1705349439814,-500.0,0.00030136,2]
[311712494,1705349439824,-520.74257972,0.00030136,2]
[311712496,1705349439832,-500.0,0.00030136,2]
[311712498,1705349439841,-555.37210289,0.00030136,2]
[311712500,1705349439850,-500.0,0.00030136,2]
[311712502,1705349439859,-500.0,0.00030136,2]
[311712504,1705349439868,-500.0,0.00030136,2]
[311712506,1705349439877,-795.27,0.00030136,2]
[311712508,1705349439886,-500.0,0.00030136,2]
[311712510,1705349439896,-500.0,0.00030136,2]
[311712512,1705349439906,-229.10235383,0.00030136,2]
[311712514,1705349439915,-500.0,0.00030136,2]
[311712516,1705349439928,-500.0,0.00030136,2]
[311712518,1705349439948,-500.0,0.00030136,2]
[311712520,1705349439969,-500.0,0.00030136,2]
[311712523,1705349439987,-664.19,0.00030136,2]
[311712527,1705349439996,-510.80992751,0.00030136,2]
[311712531,1705349440004,-500.0,0.00030136,2]
[311712535,1705349440013,-500.0,0.00030136,2]
[311712539,1705349440022,-500.0,0.00030136,2]
[311712542,1705349440031,-500.0,0.00030136,2]
[311712545,1705349440040,-500.0,0.00030136,2]
[311712548,1705349440048,-600.84545332,0.00030136,2]
[311712551,1705349440057,-509.18359272,0.00030136,2]
[311712554,1705349440066,-505.51,0.00030136,2]
[311712557,1705349440075,-500.0,0.00030136,2]
[311712559,1705349440084,-500.0,0.00030136,2]
[311712561,1705349440093,-503.26576196,0.00030136,2]
[311712563,1705349440102,-500.0,0.00030136,2]
[311712565,1705349440110,-523.319813,0.00030136,2]
[311712567,1705349440119,-500.0,0.00030136,2]
[311712569,1705349440127,-500.0,0.00030136,2]
[311712571,1705349440136,-500.0,0.00030136,2]
[311712573,1705349440145,-155.68386071,0.00030136,2]
[311712575,1705349440154,-500.0,0.00030136,2]
[311712577,1705349440163,-502.76389205,0.00030136,2]
[311712579,1705349440173,-500.0,0.00030136,2]
[311712581,1705349440183,-500.0,0.00030136,2]
[311712583,1705349440192,-500.0,0.00030136,2]
[311712585,1705349440201,-655.06,0.00030136,2]
[311712587,1705349440211,-500.0,0.00030136,2]
[311712589,1705349440220,-500.0,0.00030136,2]
[311712591,1705349440229,-500.0,0.00030136,2]
[311712593,1705349440239,-500.0,0.00030136,2]
[311712595,1705349440248,-605.88,0.00030136,2]
[311712597,1705349440257,-500.0,0.00030136,2]
[311712599,1705349440267,-213.340984,0.00030136,2]
[311712601,1705349440276,-225.18716407,0.00030136,2]
[311712603,1705349440285,-500.0,0.00030136,2]
[311712605,1705349440294,-506.7967264,0.00030136,2]
[311712607,1705349440304,-521.35,0.00030136,2]
[311712608,1705349440312,-500.0,0.00030136,2]
[311712610,1705349440322,-168.08126236,0.00030136,2]
[311712612,1705349440331,-500.0,0.00030136,2]
[311712614,1705349440340,-2391.63,0.00030136,2]
[311712616,1705349440349,-500.0,0.00030136,2]
[311712618,1705349440357,-500.0,0.00030136,2]
[311712620,1705349440366,-500.0,0.00030136,2]
[311712622,1705349440375,-488.22852689,0.00030136,2]
[311712624,1705349440384,-626.87,0.00030136,2]
[311712626,1705349440393,-500.0,0.00030136,2]
[311712628,1705349440402,-200.33733336,0.00030136,2]
[311712630,1705349440411,-504.39363086,0.00030136,2]
[311712632,1705349440420,-500.0,0.00030136,2]
[311712634,1705349440429,-500.0,0.00030136,2]
[311712636,1705349440439,-500.0,0.00030136,2]
[311712638,1705349440447,-500.0,0.00030136,2]
[311712640,1705349440456,-500.0,0.00030136,2]
[311712642,1705349440465,-500.0,0.00030136,2]
[311712644,1705349440475,-500.0,0.00030136,2]
[311712646,1705349440484,-500.0,0.00030136,2]
[311712648,1705349440493,-1151.18,0.00030136,2]
[311712650,1705349440502,-505.67458463,0.00030136,2]
[311712652,1705349440512,-500.0,0.00030136,2]
[311712654,1705349440521,-500.0,0.00030136,2]
[311712656,1705349440530,-500.0,0.00030136,2]
[311712658,1705349440539,-500.0,0.00030136,2]
[311712659,1705349440548,-2486.03,0.00030136,2]
[311712661,1705349440558,-500.0,0.00030136,2]
[311712663,1705349440567,-500.0,0.00030136,2]
[311712665,1705349440577,-500.0,0.00030136,2]
[311712667,1705349440586,-356.58383934,0.00030136,2]
[311712669,1705349440595,-500.0,0.00030136,2]
[311712671,1705349440604,-505.16618972,0.00030136,2]
[311712673,1705349440614,-500.0,0.00030136,2]
[311712675,1705349440623,-500.0,0.00030136,2]
[311712677,1705349440633,-500.0,0.00030136,2]
[311712679,1705349440643,-500.0,0.00030136,2]
[311712681,1705349440652,-500.0,0.00030136,2]
[311712683,1705349440661,-502.4278378,0.00030136,2]
[311712685,1705349440671,-500.0,0.00030136,2]
[311712687,1705349440680,-1000.0,0.00030136,2]
[311712689,1705349440690,-500.0,0.00030136,2]
[311712691,1705349440699,-500.0,0.00030136,2]
[311712693,1705349440708,-500.0,0.00030136,2]
[311712695,1705349440718,-500.0,0.00030136,2]
[311712697,1705349440727,-500.0,0.00030136,2]
[311712698,1705349440738,-500.0,0.00030136,2]
[311712700,1705349440747,-500.0,0.00030136,2]
[311712702,1705349440756,-502.22848087,0.00030136,2]
[311712704,1705349440765,-500.0,0.00030136,2]
[311712706,1705349440775,-500.0,0.00030136,2]
[311712708,1705349440784,-500.0,0.00030136,2]
[311712710,1705349440793,-253.24117854,0.00030136,2]
[311712712,1705349440802,-500.0,0.00030136,2]
[311712714,1705349440812,-500.0,0.00030136,2]
[311712716,1705349440820,-500.0,0.00030136,2]
[311712718,1705349440829,-500.0,0.00030136,2]
[311712720,1705349440838,-500.0,0.00030136,2]
[311712722,1705349440847,-337.83766465,0.00030136,2]
[311712724,1705349440856,-353.20690116,0.00030136,2]
[311712726,1705349440865,-500.0,0.00030136,2]
[311712728,1705349440875,-501.28101026,0.00030136,2]
[311712730,1705349440884,-3020.64,0.00030136,2]
[311712731,1705349440893,-500.0,0.00030136,2]
[311712733,1705349440902,-500.0,0.00030136,2]
[311712735,1705349440911,-500.0,0.00030136,2]
[311712737,1705349440920,-500.0,0.00030136,2]
[311712739,1705349440930,-500.0,0.00030136,5]
[311712741,1705349440939,-1606.49,0.00030136,2]
[311712743,1705349440949,-500.0,0.00030136,2]
[311712745,1705349440958,-500.0,0.00030136,2]
[311712747,1705349440967,-500.0,0.00030136,2]
[311712749,1705349440977,-19314.89,0.00030136,2]
[311712758,1705349440987,-500.0,0.00030136,2]
[311712761,1705349441068,-451.49328758,0.00030136,2]
[311712763,1705349441078,-500.0,0.00030136,2]
[311712765,1705349441087,-208.84713893,0.00030136,2]
[311712766,1705349441096,-500.0,0.00030136,2]
[311712768,1705349441106,-500.0,0.00030136,2]
[311712770,1705349441116,-500.0,0.00030136,2]
[311712772,1705349441126,-500.0,0.00030136,2]
[311712774,1705349441135,-500.0,0.00030136,2]
[311712776,1705349441144,-500.0,0.00030136,2]
[311712778,1705349441154,-500.0,0.00030136,2]
[311712780,1705349441163,-500.0,0.00030136,2]
[311712782,1705349441172,-623.0,0.00030136,2]
[311712784,1705349441181,-200.21982101,0.00030136,2]
[311712786,1705349441190,-12031.8,0.00030136,2]
[311712787,1705349441200,-500.49527847,0.00030136,2]
[311712788,1705349441209,-500.0,0.00030136,2]
[311712789,1705349441218,-512.04464966,0.00030136,2]
[311712790,1705349441227,-500.0,0.00030136,2]
[311712791,1705349441239,-500.0,0.00030136,2]
[311712792,1705349441250,-500.0,0.00030136,2]
[311712793,1705349441261,-512.2627489,0.00030136,2]
[311712794,1705349441270,-4534.31,0.00030136,2]
[311712795,1705349441281,-506.74811527,0.00030136,2]
[311712796,1705349441291,-500.0,0.00030136,2]
[311712797,1705349441302,-500.0,0.00030136,2]
[311712798,1705349441312,-571.18,0.00030136,2]
[311712799,1705349441323,-500.0,0.00030136,2]
[311712800,1705349441333,-502.15793404,0.00030136,2]
[311712801,1705349441344,-1214.33,0.00030136,2]
[311712802,1705349441353,-500.0,0.00030136,2]
[311712803,1705349441363,-204.94596919,0.00030136,2]
[311712804,1705349441372,-500.0,0.00030136,2]
[311712805,1705349441382,-500.0,0.00030136,2]
[311712806,1705349441391,-500.0,0.00030136,2]
[311712807,1705349441401,-1397.71,0.00030136,2]
[311712808,1705349441411,-500.0,0.00030136,2]
[311712809,1705349441423,-500.0,0.00030136,2]
[311712810,1705349441432,-674.82,0.00030136,2]
[311712811,1705349441441,-500.0,0.00030136,2]
[311712812,1705349441450,-500.0,0.00030136,2]
[311712813,1705349441458,-4118.94,0.00030136,2]
[311712814,1705349441469,-500.0,0.00030136,2]
[311712815,1705349441480,-521.16891918,0.00030136,2]
[311712816,1705349441493,-2246.28,0.00030136,2]
[311712817,1705349441502,-515.47059416,0.00030136,2]
[311712818,1705349441512,-500.0,0.00030136,2]
[311712819,1705349441522,-500.0,0.00030136,2]
[311712820,1705349441532,-893.67,0.00030136,2]
[311712821,1705349441541,-500.0,0.00030136,2]
[311712822,1705349441551,-515.20044947,0.00030136,2]
[311712823,1705349441560,-500.0,0.00030136,2]
[311712824,1705349441569,-1000.0,0.00030136,2]
[311712825,1705349441579,-500.0,0.00030136,2]
[311712826,1705349441589,-500.0,0.00030136,2]
[311712827,1705349441598,-501.13724917,0.00030136,2]
[311712828,1705349441607,-536.0178926,0.00030136,2]
[311712829,1705349441617,-500.0,0.00030136,2]
[311712830,1705349441626,-393.2744873,0.00030136,2]
[311712831,1705349441636,-848.07,0.00030136,2]
[311712832,1705349441645,-500.0,0.00030136,2]
[311712833,1705349441655,-510.34306805,0.00030136,2]
[311712834,1705349441664,-502.41032459,0.00030136,2]
[311712835,1705349441674,-3070.13,0.00030136,2]
[311712836,1705349441683,-500.0,0.00030136,2]
[311712837,1705349441692,-503.59532342,0.00030136,2]
[311712838,1705349441701,-997.51,0.00030136,2]
[311712839,1705349441711,-500.0,0.00030136,2]
[311712840,1705349441720,-500.0,0.00030136,2]
[311712841,1705349441730,-500.0,0.00030136,2]
[311712842,1705349441742,-593.5093028,0.00030136,2]
[311712843,1705349441751,-624.39,0.00030136,2]
[311712844,1705349441761,-500.0,0.00030136,2]
[311712845,1705349441770,-409.20909171,0.00030136,2]
[311712846,1705349441779,-500.0,0.00030136,2]
[311712847,1705349441789,-500.0,0.00030136,2]
[311712848,1705349441799,-505.46016251,0.00030136,2]
[311712849,1705349441808,-5163.63,0.00030136,2]
[311712850,1705349441819,-500.0,0.00030136,2]
[311712851,1705349441830,-500.0,0.00030136,2]
[311712852,1705349441840,-500.0,0.00030136,2]
[311712853,1705349441850,-1172.47,0.00030136,2]
[311712854,1705349441860,-5038.68,0.00030136,2]
[311712855,1705349441870,-304.18856193,0.00030136,2]
[311712856,1705349441881,-198.8577961,0.00030137,2]
[311712857,1705349441891,-198.8577961,0.00030137,2]
[311712858,1705349441900,-198.8577961,0.00030137,2]
[311712859,1705349441909,-198.8577961,0.00030137,2]
[311712860,1705349441919,-198.8577961,0.00030137,2]
[311712861,1705349441929,-198.8577961,0.00030137,2]
[311712862,1705349441945,-198.8577961,0.00030137,2]
[311712863,1705349441954,-198.8577961,0.00030137,2]
[311712864,1705349441963,-198.8577961,0.00030137,2]
[311712865,1705349441973,-198.8577961,0.00030137,2]
[311712866,1705349441987,-198.8577961,0.00030137,2]
[311712867,1705349441998,-198.8577961,0.00030137,2]
[311712868,1705349442008,-198.8577961,0.00030137,2]
[311712869,1705349442019,-198.8577961,0.00030137,2]
[311712870,1705349442029,-198.8577961,0.00030137,2]
[311712871,1705349442039,-196.4630613,0.00030137,2]
[311712872,1705349442048,-324.28873525,0.00030245,2]
[311712873,1705349442057,-1529.77242689,0.00030245,2]
[311712874,1705349442068,-500.0,0.00030309,2]
[311712875,1705349442078,-500.0,0.00030409,2]
[311712876,1705349442087,-500.0,0.00030409,2]
[311712877,1705349442101,-500.0,0.00030409,2]
[311712878,1705349442110,-500.0,0.00030409,2]
[311712879,1705349442119,-500.0,0.0003041,2]
[311712880,1705349442129,-500.0,0.0003041,2]
[311712881,1705349442138,-500.0,0.0003041,2]
[311712882,1705349442148,-547.64413327,0.0003041,2]
[311712883,1705349442157,-508.79321052,0.0003041,2]
[311712884,1705349442167,-500.0,0.0003041,2]
[311712885,1705349442176,-150.0,0.0003041,2]
[311712886,1705349442187,-502.99875543,0.0003041,2]
[311712887,1705349442199,-500.0,0.0003041,2]
[311712888,1705349442208,-583.22,0.0003041,2]
[311712889,1705349442218,-500.0,0.0003041,2]
[311712890,1705349442229,-500.0,0.0003041,2]
[311712891,1705349442240,-500.0,0.0003041,2]
[311712892,1705349442250,-500.0,0.0003041,2]
[311712893,1705349442260,-500.0,0.0003041,2]
[311712894,1705349442271,-500.0,0.0003041,2]
[311712895,1705349442281,-500.0,0.0003041,2]
[311712896,1705349442290,-500.0,0.0003041,2]
[311712898,1705349442299,-938.07262843,0.0003041,2]
[311712901,1705349442319,-767.45911271,0.0003041,2]
[311712910,1705349442467,-500.0,0.00030136,2]
[311712911,1705349442476,-74.31825886,0.0003041,2]
[311712912,1705349442486,-500.0,0.0003041,2]
[311712913,1705349442496,-500.0,0.0003041,2]
[311712914,1705349442506,-500.0,0.0003041,2]
[311712915,1705349442514,-180.80895883,0.0003041,2]
[311712916,1705349442526,-331.08068714,0.0003041,2]
[311712918,1705349442535,-829.68,0.0003041,2]
[311712920,1705349442544,-500.0,0.0003041,2]
[311712922,1705349442553,-586.24,0.0003041,2]
[311712924,1705349442563,-503.34624185,0.0003041,2]
[311712926,1705349442573,-1063.05,0.0003041,2]
[311712928,1705349442582,-1060.72,0.0003041,2]
[311712930,1705349442591,-564.07,0.0003041,2]
[311712932,1705349442600,-428.23624751,0.0003041,2]
[311712934,1705349442611,-71.76375249,0.0003041,2]
[311712936,1705349442621,-500.0,0.0003041,2]
[311712939,1705349442630,-500.0,0.0003041,2]
[311712941,1705349442639,-694.92,0.0003041,2]
[311712943,1705349442648,-500.0,0.0003041,2]
[311712945,1705349442657,-344.25649987,0.0003041,2]
[311712947,1705349442666,-500.0,0.0003041,2]
[311712949,1705349442675,-507.48338079,0.0003041,2]
[311712951,1705349442684,-186.76567446,0.0003041,2]
[311712953,1705349442693,-500.51535724,0.0003041,2]
[311712955,1705349442702,-500.0,0.0003041,2]
[311712956,1705349442711,-662.62,0.0003041,2]
[311712957,1705349442720,-500.0,0.0003041,2]
[311712958,1705349442730,-500.0,0.0003041,2]
[311712959,1705349442740,-504.91326145,0.0003041,2]
[311712960,1705349442749,-500.0,0.0003041,2]
[311712961,1705349442759,-500.0,0.0003041,2]
[311712962,1705349442768,-500.0,0.0003041,2]
[311712963,1705349442777,-500.0,0.0003041,2]
[311712964,1705349442786,-500.0,0.0003041,2]
[311712965,1705349442795,-822.87,0.0003041,2]
[311712966,1705349442804,-500.0,0.0003041,2]
[311712967,1705349442814,-500.0,0.0003041,2]
[311712968,1705349442823,-500.0,0.0003041,2]
[311712969,1705349442832,-500.0,0.0003041,2]
[311712970,1705349442841,-795.27,0.0003041,2]
[311712971,1705349442851,-500.72509967,0.0003041,2]
[311712972,1705349442860,-500.0,0.0003041,2]
[311712973,1705349442869,-500.0,0.0003041,2]
[311712974,1705349442877,-643.11957261,0.0003041,2]
[311712975,1705349442887,-664.19,0.0003041,2]
[311712976,1705349442969,-503.24629556,0.0003041,2]
[311712977,1705349442979,-505.51,0.0003041,2]
[311712978,1705349442989,-500.0,0.0003041,2]
[311712979,1705349442998,-500.0,0.0003041,2]
[311712980,1705349443008,-500.65301249,0.0003041,2]
[311712982,1705349443017,-500.0,0.0003041,2]
[311712984,1705349443026,-500.0,0.0003041,2]
[311712986,1705349443035,-504.98512044,0.0003041,2]
[311712988,1705349443044,-500.85367027,0.0003041,2]
[311712989,1705349443053,-655.06,0.0003041,2]
[311712990,1705349443062,-500.0,0.0003041,2]
[311712991,1705349443071,-501.93142578,0.0003041,2]
[311712992,1705349443081,-605.88,0.0003041,2]
[311712993,1705349443090,-138.05377541,0.0003041,2]
[311712994,1705349443102,-361.94622459,0.0003041,2]
[311712995,1705349443111,-500.0,0.0003041,2]
[311712996,1705349443120,-521.35,0.0003041,2]
[311712997,1705349443130,-503.51601162,0.0003041,2]
[311712998,1705349443139,-500.0,0.0003041,2]
[311712999,1705349443148,-2391.63,0.0003041,2]
[311713000,1705349443157,-500.0,0.0003041,2]
[311713001,1705349443167,-500.0,0.0003041,2]
[311713002,1705349443176,-500.0,0.0003041,2]
[311713003,1705349443185,-626.87,0.0003041,2]
[311713004,1705349443194,-500.0,0.0003041,2]
[311713005,1705349443203,-500.0,0.0003041,2]
[311713006,1705349443212,-331.22561931,0.0003041,2]
[311713007,1705349443222,-501.16418846,0.0003041,2]
[311713008,1705349443231,-500.0,0.0003041,2]
[311713009,1705349443239,-500.0,0.0003041,2]
[311713010,1705349443248,-500.0,0.0003041,2]
[311713011,1705349443258,-500.0,0.0003041,2]
[311713012,1705349443267,-1151.18,0.0003041,2]
[311713013,1705349443277,-197.23681669,0.0003041,2]
[311713014,1705349443286,-500.0,0.0003041,2]
[311713015,1705349443296,-500.0,0.0003041,2]
[311713016,1705349443305,-2486.03,0.0003041,2]
[311713017,1705349443315,-500.0,0.0003041,2]
[311713018,1705349443324,-500.0,0.0003041,2]
[311713019,1705349443333,-500.72640144,0.0003041,2]
[311713020,1705349443342,-500.0,0.0003041,2]
[311713021,1705349443351,-500.0,0.0003041,2]
[311713022,1705349443360,-500.0,0.0003041,2]
[311713023,1705349443369,-500.0,0.0003041,2]
[311713024,1705349443378,-500.0,0.0003041,2]
[311713025,1705349443387,-404.64629949,0.0003041,2]
[311713026,1705349443396,-166.95289881,0.0003041,2]
[311713027,1705349443405,-219.91537736,0.0003041,2]
[311713028,1705349443414,-500.0,0.0003041,2]
[311713029,1705349443423,-505.55188647,0.0003041,2]
[311713030,1705349443432,-390.2743116,0.0003041,2]
[311713291,1705349446207,-0.77837318,0.00029936,2]
[311715684,1705349470538,-155.33523563,0.00022601,2]
[311715688,1705349470566,-148.81608371,0.00022601,2]
[311715698,1705349470654,-6.20716978,0.00022601,2]
[311715721,1705349470876,297.94414956,0.00022601,2]
[311715725,1705349470903,304.15131934,0.00022601,2]
[311715729,1705349470936,-304.15131934,0.00022601,2]
[311715770,1705349471312,-2260.96048692,0.00022601,2]
[311715775,1705349471426,-46.14205075,0.00022601,2]
[311716413,1705349491844,-587.55478974,0.000226,2]
[311716414,1705349491871,-150.4595881,0.00022601,2]
[311716415,1705349491957,-15.06151791,0.00022601,2]
[311716424,1705349899975,-178.67391792,0.00025976,2]
[311716425,1705349899997,-166.666666,0.00025977,2]
[311716426,1705349900018,-154.9690062,0.00026477,4]
[311716427,1705349900038,-3000.0,0.0002648,2]
[311716428,1705349900062,-6634.69040988,0.0002648,2]
[311716463,1705350353221,-248.567536,0.00025019,2]
[311716464,1705350353242,-2873.77131778,0.00025095,2]
[311716465,1705350353264,-24808.66114622,0.00025096,2]
[311716470,1705350436428,-154.9690062,0.00025095,4]
[311716471,1705350436449,-657.0309938,0.00025095,2]
[311716475,1705350492251,-245.0,0.0002469,2]
[311716476,1705350492582,-5.0,0.0002469,2]
[311716477,1705350502563,-154.9690062,0.00025095,2]
[311716478,1705350502585,-22.21330122,0.00025095,2]
[311716479,1705350502708,-633.81769258,0.00025096,2]
[311716480,1705350583422,-12000.0,0.00024651,2]
[311716481,1705350583459,-12000.0,0.00024651,2]
[311716482,1705350583500,-12000.0,0.00024651,2]
[311716483,1705350583652,-4474.5555326,0.00024651,2]
[311716493,1705350633087,-6517.89223906,0.00025092,2]
[311716494,1705350633097,-154.9690062,0.00025093,4]
[311716495,1705350633106,-10515.69454875,0.00025093,2]
[311716496,1705350633115,-155.08060177,0.00025095,2]
[311716497,1705350633125,-559.47182014,0.00025095,2]
[311716498,1705350633134,-308.96617009,0.00025095,2]
[311716499,1705350633144,-23.45245441,0.00025096,2]
[311716500,1705350633153,-91.33885378,0.00025096,2]
[311716501,1705350633162,-4021.9809969,0.00025686,2]
[311716502,1705350633171,-265.7994308,0.00025737,2]
[311716503,1705350633180,-4158.92,0.00025965,3]
[311716504,1705350633189,-3465.77,0.00025965,3]
[311716505,1705350633199,-59572.03210999,0.00025975,2]
[311716512,1705350633263,-918.51927128,0.00025975,2]
[311716602,1705350638158,-514.34914362,0.00025965,3]
[311716610,1705350638219,-2373.79085638,0.00025965,3]
[311716612,1705350638229,-16662.10278456,0.00025975,2]
[311716614,1705350638238,-167.925873,0.00026289,2]
[311716616,1705350638247,-158.11687988,0.00026377,2]
[311716618,1705350638256,-343.20044242,0.0002648,2]
[311716620,1705350638266,-1822.05331204,0.0002648,2]
[311716624,1705350638275,-498.01549845,0.0002648,2]
[311716627,1705350638284,-3207.51824658,0.0002648,2]
[311716630,1705350638293,-1135.7664553,0.00027,2]
[311716633,1705350638302,-239.81635169,0.000274,2]
[311716635,1705350638311,-1112.59905219,0.00027614,2]
[311716637,1705350638320,-424.90307088,0.00028145,2]
[311716639,1705350638329,-198.8577961,0.00029315,2]
[311716641,1705350638339,-198.8577961,0.00029315,2]
[311716643,1705350638347,-198.8577961,0.00029315,2]
[311716645,1705350638357,-198.8577961,0.00029315,2]
[311716647,1705350638366,-198.8577961,0.00029315,2]
[311716649,1705350638375,-198.8577961,0.00029315,2]
[311716651,1705350638384,-198.8577961,0.00029315,2]
[311716652,1705350638394,-594.2143433,0.00029491,2]
[311716654,1705350638403,-16420.61440693,0.00029936,2]
[311716656,1705350638412,-23069.24170259,0.00029936,7]
[311716658,1705350638421,-441.58037747,0.00029936,2]
[311716660,1705350638430,-156.50740547,0.00029936,2]
[311716662,1705350638440,-154.9690062,0.0003,2]
[311716664,1705350638449,-273.0,0.0003,2]
[311716666,1705350638460,-282.83454941,0.0003,3]
[311716668,1705350638469,-316.23203037,0.0003,4]
[311716670,1705350638480,-297.8809135,0.0003,4]
[311716672,1705350638490,-1413.42859915,0.00030067,2]
[311716674,1705350638499,-1489.18628655,0.00030068,4]
[311716676,1705350638509,-155.0,0.00030104,2]
[311716678,1705350638518,-179.11058245,0.00030134,4]
[311716680,1705350638528,-1014.11617907,0.00030134,4]
[311716682,1705350638537,-155.0,0.00030134,4]
[311716684,1705350638546,-195.04845331,0.00030134,4]
[311716686,1705350638556,-686.8051383,0.00030134,4]
[311716688,1705350638565,-677.59372393,0.00030134,4]
[311716690,1705350638574,-2871.95900916,0.00030134,4]
[311716701,1705350638663,-155.0,0.00030134,4]
[311716703,1705350638672,-160.80243984,0.00030134,4]
[311716705,1705350638681,-155.0,0.00030134,4]
[311716707,1705350638690,-1196.17159553,0.00030134,4]
[311716709,1705350638699,-154.98450155,0.00030134,4]
[311716711,1705350638708,-362.82536641,0.00030134,4]
[311716713,1705350638717,-631.54052132,0.00030134,2]
[311716715,1705350638726,-198.91903016,0.00030135,4]
[311716717,1705350638735,-10135.33451069,0.00030135,4]
[311716719,1705350638744,-162.72,0.00030135,2]
[311716721,1705350638753,-500.0,0.00030136,2]
[311716723,1705350638763,-500.0,0.00030136,2]
[311716725,1705350638772,-376.9775158,0.00030136,2]
[311716727,1705350638781,-500.0,0.00030136,2]
[311716729,1705350638790,-355.51433788,0.00030136,2]
[311716731,1705350638799,-611.17086737,0.00030136,2]
[311716733,1705350638808,-500.0,0.00030136,2]
[311716735,1705350638817,-572.92806522,0.00030136,2]
[311716737,1705350638826,-502.86947802,0.00030136,2]
[311716739,1705350638835,-163.18093818,0.00030136,2]
[311716741,1705350638844,-505.462296,0.00030136,2]
[311716743,1705350638853,-500.0,0.00030136,2]
[311716745,1705350638863,-500.0,0.00030136,2]
[311716747,1705350638872,-500.0,0.00030136,2]
[311716749,1705350638881,-547.11543908,0.00030136,2]
[311716751,1705350638891,-500.0,0.00030136,2]
[311716753,1705350638899,-500.0,0.00030136,2]
[311716754,1705350638908,-500.0,0.00030136,2]
[311716757,1705350638918,-500.0,0.00030136,2]
[311716759,1705350638927,-500.0,0.00030136,2]
[311716761,1705350638936,-500.0,0.00030136,2]
[311716762,1705350638946,-500.0,0.00030136,2]
[311716764,1705350638955,-503.2198619,0.00030136,2]
[311716766,1705350638964,-200.0,0.00030136,2]
[311716768,1705350638973,-500.0,0.00030136,2]
[311716770,1705350638982,-231.41577628,0.00030136,2]
[311716772,1705350638991,-541.59,0.00030136,2]
[311716774,1705350639000,-243.60659354,0.00030136,2]
[311716776,1705350639009,-500.0,0.00030136,2]
[311716778,1705350639018,-500.0,0.00030136,2]
[311716780,1705350639027,-500.0,0.00030136,2]
[311716782,1705350639038,-667.23,0.00030136,2]
[311716784,1705350639047,-220.0,0.00030136,2]
[311716786,1705350639056,-500.0,0.00030136,2]
[311716788,1705350639066,-500.0,0.00030136,2]
[311716790,1705350639095,-500.0,0.00030136,2]
[311716791,1705350639110,-1071.1,0.00030136,2]